[Event "SuperChess Cup Blitz 2019"]
[Site "Bucharest"]
[Date "2019.11.10"]
[Round "17.3"]
[White "Cosma, Elena-Luminita"]
[Black "Parligras, Mircea-Emilian"]
[Result "0-1"]
[ECO "A46"]
[WhiteElo "2199"]
[BlackElo "2458"]
[Annotator "RC"]
[PlyCount "114"]
[EventDate "2019.11.06"]
[EventType "tourn"]
[EventCountry "ROU"]
[SourceTitle "playchess.com"]
[Source "ChessBase"]
[SourceQuality "1"]
[TimeMode "Bronstein"]
[TimeControl "300+3"]

1. d4 {[%emt 0:00:00]} Nf6 {[%emt 0:00:00]} 2. Nf3 {[%emt 0:00:00]} d5 {[%emt 0:00:00]} 3. c4 {[%emt 0:00:00]} e6 {[%emt 0:00:00]} 4. g3 {[%emt 0:00:00]} Bb4+ {[%emt 0:00:00]} 5. Bd2 {[%emt 0:00:00]} Bd6 {[%emt 0:00:00]} 6. Bg2 {[%emt 0:00:00]} c6 {[%emt 0:00:00]} 7. Qc2 {[%emt 0:00:00]} Nbd7 {[%emt 0:00:00]} 8. O-O {[%emt 0:00:00]} O-O {[%emt 0:00:00]} 9. Bg5 {[%emt 0:00:00]} h6 {[%emt 0:00:00]} 10. Bxf6 {[%emt 0:00:00]} Nxf6 {[%emt 0:00:00]} 11. Nbd2 {[%emt 0:00:00]} b6 {[%emt 0:00:00]} 12. e4 {[%emt 0:00:00]} Be7 {[%emt 0:00:00]} 13. e5 {[%emt 0:00:00]} Nd7 {[%emt 0:00:00]} 14. cxd5 {[%emt 0:00:00]} cxd5 {[%emt 0:00:00]} 15. Rfc1 {[%emt 0:00:00]} Nb8 {[%emt 0:00:04]} 16. Bf1 {[%emt 0:00:00]} Bd7 {[%emt 0:00:03]} 17. a3 {[%emt 0:00:00]} a5 {[%emt 0:00:07]} 18. Nb1 {[%emt 0:00:13]} b5 {[%emt 0:00:20]} 19. Nc3 {[%emt 0:00:04]} b4 {[%emt 0:00:05]} 20. axb4 {[%emt 0:00:14]} Bxb4 {[%emt 0:00:03]} 21. Na4 {[%emt 0:00:13]} Na6 {[%emt 0:00:28]} 22. Qb3 {[%emt 0:00:22]} Qb8 {[%emt 0:00:13]} 23. Bd3 {[%emt 0:00:51]} Bb5 {[%emt 0:00:10]} 24. Bxb5 {[%emt 0:00:24]} Qxb5 {[%emt 0:00:03]} 25. Rc2 {[%emt 0:00:03]} Rfc8 {[%emt 0:00:20]} 26. Rac1 {[%emt 0:00:03]} Qb7 {[%emt 0:00:30]} 27. Kg2 {[%emt 0:00:09]} Rab8 {[%emt 0:00:07]} 28. h4 {[%emt 0:00:15]} Rxc2 {[%emt 0:00:11]} 29. Qxc2 {[%emt 0:00:03]} Bf8 {[%emt 0:00:16]} 30. Qc6 {[%emt 0:00:10]} Qxc6 {[%emt 0:00:11]} 31. Rxc6 {[%emt 0:00:03]} Nb4 {[%emt 0:00:03]} 32. Rc3 {[%emt 0:00:15]} g6 {[%emt 0:00:18]} 33. Nc5 {[%emt 0:00:35]} Rc8 {[%emt 0:00:12]} 34. Na4 {[%emt 0:00:03]} Rxc3 {[%emt 0:00:15]} 35. bxc3 {[%emt 0:00:03]} Nc2 {[%emt 0:00:13]} 36. Nd2 {[%emt 0:00:03]} Na3 {[%emt 0:00:25]} 37. Kf1 {[%emt 0:00:22]} Be7 {[%emt 0:00:03]} 38. Ke2 {[%emt 0:00:03]} Kf8 {[%emt 0:00:03]} 39. Kd3 {[%emt 0:00:03]} Ke8 {[%emt 0:00:03]} 40. Nb6 {[%emt 0:00:37]} Bd8 {[%emt 0:00:17]} 41. Na4 {[%emt 0:00:14]} Kd7 {[%emt 0:00:03]} 42. c4 {[%emt 0:00:06]} dxc4+ {[%emt 0:00:29]} 43. Nxc4 {[%emt 0:00:03]} Nxc4 {[%emt 0:00:03]} 44. Kxc4 {[%emt 0:00:03]} Kc6 {[%emt 0:00:03]} 45. h5 {[%emt 0:00:25]} gxh5 {[%emt 0:00:03]} 46. Nc3 {[%emt 0:00:10]} h4 {[%emt 0:00:03]} 47. gxh4 {[%emt 0:00:05]} Bxh4 {[%emt 0:00:03]} 48. Ne4 {[%emt 0:00:03]} Be7 {[%emt 0:00:08]} 49. Nc3 {[%emt 0:00:06]} h5 {[%emt 0:00:06]} 50. d5+ {[%emt 0:00:03]} exd5+ {[%emt 0:00:03]} 51. Nxd5 {[%emt 0:00:03]} Bd8 {[%emt 0:00:03]} 52. Nf4 {[%emt 0:00:03]} h4 {[%emt 0:00:03]} 53. e6 {[%emt 0:00:03]} fxe6 {[%emt 0:00:06]} 54. Nxe6 {[%emt 0:00:03]} h3 {[%emt 0:00:06]} 55. Nxd8+ {[%emt 0:00:06]} Kd7 {[%emt 0:00:09]} 56. Nf7 {[%emt 0:00:03]} h2 {[%emt 0:00:03]} 57. Ne5+ {[%emt 0:00:03]} Ke6 {[%emt 0:00:03]} 0-1

[Event "SuperChess Cup Blitz 2019"]
[Site "Bucharest"]
[Date "2019.11.10"]
[Round "18.2"]
[White "Miron, Lucian-Costin"]
[Black "Istratescu, Andrei"]
[Result "0-1"]
[ECO "A40"]
[WhiteElo "2432"]
[BlackElo "2604"]
[Annotator "ChessBase"]
[PlyCount "144"]
[EventDate "2019.11.06"]
[EventType "tourn"]
[EventCountry "ROU"]
[SourceTitle "playchess.com"]
[Source "ChessBase"]
[SourceQuality "1"]
[TimeMode "Bronstein"]
[TimeControl "300+3"]

1. d4 {[%emt 0:00:00]} g6 {[%emt 0:00:00]} 2. c4 {[%emt 0:00:00]} Bg7 {[%emt 0:00:00]} 3. Nf3 {[%emt 0:00:00]} c5 {[%emt 0:00:01]} 4. d5 {[%emt 0:00:02]} d6 {[%emt 0:00:25]} 5. Nc3 {[%emt 0:00:02]} Bxc3+ {[%emt 0:00:05]} 6. bxc3 {[%emt 0:00:02]} f5 {[%emt 0:00:03]} 7. Qc2 {[%emt 0:00:28]} Nf6 {[%emt 0:00:09]} 8. Bh6 {[%emt 0:00:03]} Qa5 {[%emt 0:00:18]} 9. Nd2 {[%emt 0:00:13]} Nbd7 {[%emt 0:00:15]} 10. f3 {[%emt 0:00:11]} Nb6 {[%emt 0:00:37]} 11. e3 {[%emt 0:00:26]} Rg8 {[%emt 0:00:14]} 12. h4 {[%emt 0:00:18]} e5 {[%emt 0:00:24]} 13. dxe6 {[%emt 0:00:43]} Bxe6 {[%emt 0:00:03]} 14. Bg5 {[%emt 0:00:03]} Nh5 {[%emt 0:00:17]} 15. Bd3 {[%emt 0:00:09]} Qa4 {[%emt 0:00:10]} 16. Qb3 {[%emt 0:00:14]} Kd7 {[%emt 0:00:20]} 17. Kf2 {[%emt 0:00:10]} Rae8 {[%emt 0:00:14]} 18. Rhd1 {[%emt 0:00:03]} Kc7 {[%emt 0:00:06]} 19. Rab1 {[%emt 0:00:08]} Rgf8 {[%emt 0:00:09]} 20. Kg1 {[%emt 0:00:10]} Qxb3 {[%emt 0:00:06]} 21. axb3 {[%emt 0:00:03]} Nf6 {[%emt 0:00:16]} 22. Nf1 {[%emt 0:00:12]} Nfd7 {[%emt 0:00:03]} 23. Be2 {[%emt 0:00:11]} Ne5 {[%emt 0:00:03]} 24. Ng3 {[%emt 0:00:04]} Nbd7 {[%emt 0:00:12]} 25. Bf1 {[%emt 0:00:15]} Nf7 {[%emt 0:00:04]} 26. Bf4 {[%emt 0:00:03]} Nfe5 {[%emt 0:00:16]} 27. Ne2 {[%emt 0:00:06]} Nb8 {[%emt 0:00:12]} 28. Bg3 {[%emt 0:00:07]} Nbc6 {[%emt 0:00:03]} 29. Nf4 {[%emt 0:00:03]} Bg8 {[%emt 0:00:03]} 30. Rd2 {[%emt 0:00:06]} a6 {[%emt 0:00:05]} 31. Rbd1 Rd8 32. Kf2 {[%emt 0:00:11]} Rd7 {[%emt 0:00:09]} 33. Bd3 {[%emt 0:00:17]} Nxd3+ {[%emt 0:00:09]} 34. Rxd3 {[%emt 0:00:03]} Ne5 {[%emt 0:00:06]} 35. Nd5+ {[%emt 0:00:09]} Kb8 {[%emt 0:00:19]} 36. R3d2 {[%emt 0:00:03]} Ka7 {[%emt 0:00:27]} 37. Nf4 {[%emt 0:00:53]} Rfd8 {[%emt 0:00:03]} 38. Nd3 {[%emt 0:00:03]} Nxd3+ {[%emt 0:00:03]} 39. Rxd3 {[%emt 0:00:03]} d5 {[%emt 0:00:03]} 40. Bf4 {[%emt 0:00:06]} Be6 {[%emt 0:00:03]} 41. Bg5 {[%emt 0:00:03]} dxc4 {[%emt 0:00:03]} 42. Rxd7 {[%emt 0:00:07]} Rxd7 {[%emt 0:00:03]} 43. Rxd7 {[%emt 0:00:04]} Bxd7 {[%emt 0:00:03]} 44. bxc4 Be6 45. e4 {[%emt 0:00:07]} fxe4 {[%emt 0:00:03]} 46. fxe4 {[%emt 0:00:03]} Bxc4 {[%emt 0:00:03]} 47. Ke3 {[%emt 0:00:04]} Kb6 {[%emt 0:00:03]} 48. Bf6 {[%emt 0:00:03]} Kc6 {[%emt 0:00:03]} 49. Bd8 {[%emt 0:00:03]} b6 {[%emt 0:00:03]} 50. Kd2 {[%emt 0:00:03]} a5 {[%emt 0:00:03]} 51. Kc2 {[%emt 0:00:03]} a4 {[%emt 0:00:03]} 52. Kb2 {[%emt 0:00:03]} b5 {[%emt 0:00:03]} 53. Be7 {[%emt 0:00:04]} Bd3 {[%emt 0:00:05]} 54. e5 {[%emt 0:00:03]} Kd5 {[%emt 0:00:03]} 55. Bd6 {[%emt 0:00:03]} h6 {[%emt 0:00:03]} 56. g3 {[%emt 0:00:03]} g5 {[%emt 0:00:03]} 57. hxg5 {[%emt 0:00:03]} hxg5 {[%emt 0:00:03]} 58. Ka3 {[%emt 0:00:03]} g4 {[%emt 0:00:03]} 59. Kb2 {[%emt 0:00:03]} Kc4 {[%emt 0:00:03]} 60. Ka3 {[%emt 0:00:03]} Bf5 {[%emt 0:00:03]} 61. Be7 {[%emt 0:00:04]} Bd7 {[%emt 0:00:03]} 62. Bd6 {[%emt 0:00:03]} Kd5 {[%emt 0:00:03]} 63. Be7 {[%emt 0:00:03]} b4+ {[%emt 0:00:03]} 64. cxb4 {[%emt 0:00:03]} c4 {[%emt 0:00:03]} 65. Bd6 {[%emt 0:00:03]} Kd4 {[%emt 0:00:03]} 66. b5 {[%emt 0:00:03]} Bxb5 {[%emt 0:00:03]} 67. Kb4 {[%emt 0:00:03]} Be8 {[%emt 0:00:03]} 68. e6 {[%emt 0:00:05]} c3 {[%emt 0:00:03]} 69. Bf4 {[%emt 0:00:03]} Kd3 {[%emt 0:00:03]} 70. Ka3 {[%emt 0:00:03]} Kc2 {[%emt 0:00:03]} 71. Ka2 {[%emt 0:00:03]} Kd1 {[%emt 0:00:03]} 72. Ka3 {[%emt 0:00:03]} c2 {[%emt 0:00:03]} 0-1

[Event "SuperChess Cup Blitz 2019"]
[Site "Bucharest"]
[Date "2019.11.10"]
[Round "18.5"]
[White "Peptan, Corina-Isabela"]
[Black "Deac, Bogdan-Daniel"]
[Result "0-1"]
[ECO "D37"]
[WhiteElo "2334"]
[BlackElo "2544"]
[Annotator "RC"]
[PlyCount "78"]
[EventDate "2019.11.06"]
[EventType "tourn"]
[EventCountry "ROU"]
[SourceTitle "playchess.com"]
[Source "ChessBase"]
[SourceQuality "1"]
[TimeMode "Bronstein"]
[TimeControl "300+3"]

1. d4 {[%emt 0:00:00]} d5 {[%emt 0:00:00]} 2. Nf3 {[%emt 0:00:00]} e6 {[%emt 0:00:04]} 3. c4 {[%emt 0:00:00]} Nf6 {[%emt 0:00:17]} 4. Nc3 {[%emt 0:00:00]} Nbd7 {[%emt 0:00:11]} 5. cxd5 {[%emt 0:00:18]} exd5 {[%emt 0:00:03]} 6. Bg5 {[%emt 0:00:03]} c6 {[%emt 0:00:05]} 7. e3 {[%emt 0:00:03]} h6 {[%emt 0:00:03]} 8. Bh4 {[%emt 0:00:04]} g5 {[%emt 0:00:03]} 9. Bg3 {[%emt 0:00:03]} Nh5 {[%emt 0:00:03]} 10. Bd3 {[%emt 0:00:16]} Nxg3 {[%emt 0:00:03]} 11. hxg3 {[%emt 0:00:03]} Bg7 {[%emt 0:00:03]} 12. Qe2 {[%emt 0:00:28]} Qe7 {[%emt 0:00:10]} 13. Rd1 {[%emt 0:00:12]} Nb6 {[%emt 0:00:13]} 14. Bb1 {[%emt 0:00:45]} Bg4 {[%emt 0:00:25]} 15. e4 {[%emt 0:01:07]} dxe4 {[%emt 0:00:10]} 16. Qxe4 {[%emt 0:00:03]} Qxe4+ {[%emt 0:00:10]} 17. Bxe4 {[%emt 0:00:06]} O-O-O {[%emt 0:00:13]} 18. Ne2 {[%emt 0:00:28]} Rhe8 {[%emt 0:00:09]} 19. Bd3 {[%emt 0:00:03]} Bxf3 {[%emt 0:00:38]} 20. gxf3 {[%emt 0:00:04]} Bxd4 {[%emt 0:00:12]} 21. b3 {[%emt 0:00:12]} Bg7 {[%emt 0:00:47]} 22. Kf1 {[%emt 0:00:36]} Kc7 {[%emt 0:00:14]} 23. g4 {[%emt 0:00:24]} Nd5 {[%emt 0:00:03]} 24. Bc2 {[%emt 0:00:15]} Nb4 {[%emt 0:00:14]} 25. Rxd8 {[%emt 0:00:09]} Rxd8 {[%emt 0:00:03]} 26. Bb1 {[%emt 0:00:05]} Rd2 {[%emt 0:00:32]} 27. Ng3 {[%emt 0:00:07]} Nxa2 {[%emt 0:00:03]} 28. Bxa2 {[%emt 0:00:08]} Rxa2 {[%emt 0:00:03]} 29. Kg2 {[%emt 0:00:03]} Rb2 {[%emt 0:00:34]} 30. Nf5 {[%emt 0:00:03]} Bf8 {[%emt 0:00:03]} 31. Nxh6 {[%emt 0:00:03]} Bc5 {[%emt 0:00:18]} 32. Rf1 {[%emt 0:00:03]} f6 {[%emt 0:00:04]} 33. Ng8 {[%emt 0:00:04]} Bd4 {[%emt 0:00:03]} 34. Ne7 {[%emt 0:00:05]} Rxb3 {[%emt 0:00:04]} 35. Rd1 {[%emt 0:00:03]} c5 {[%emt 0:00:06]} 36. Nf5 {[%emt 0:00:03]} a5 {[%emt 0:00:05]} 37. Nxd4 {[%emt 0:00:03]} cxd4 {[%emt 0:00:03]} 38. Rxd4 {[%emt 0:00:03]} b5 {[%emt 0:00:03]} 39. f4 Rb4 0-1